[Event "Titled Tuesday Blitz August 24 2021"]
[White "Yeletsky, Ivan"]
[Black "Harshavardhan G B"]
[WhiteFideId "24180327"]
[BlackFideId "25059009"]
[WhiteElo "2344"]
[BlackElo "1825"]
[Result "0-1"]
[Round "09"]
[TimeControl "180+1"]
[Date "2021.08.24"]
[WhiteClock "0:00:19"]
[BlackClock "0:00:08"]

1. d4 {[%clk 0:03:00]}  Nf6 {[%clk 0:02:56]} 2. c4 {[%clk 0:03:00]}  e5 {[%clk 0:02:55]} 3. dxe5 {[%clk 0:02:59]}  Ng4 {[%clk 0:02:55]} 4. Bf4 {[%clk 0:03:00]}  Nc6 {[%clk 0:02:53]} 5. Nf3 {[%clk 0:02:59]}  Bb4+ {[%clk 0:02:52]} 6. Nbd2 {[%clk 0:02:57]}  Qe7 {[%clk 0:02:51]} 7. e3 {[%clk 0:02:58]}  Ngxe5 {[%clk 0:02:48]} 8. Nxe5 {[%clk 0:02:59]}  Nxe5 {[%clk 0:02:48]} 9. Be2 {[%clk 0:02:59]}  a5 {[%clk 0:02:45]} 10. O-O {[%clk 0:02:58]}  O-O {[%clk 0:02:43]} 11. Nb1 {[%clk 0:02:52]}  d6 {[%clk 0:02:36]} 12. a3 {[%clk 0:02:52]}  Bc5 {[%clk 0:02:36]} 13. Nc3 {[%clk 0:02:53]}  Ng6 {[%clk 0:02:35]} 14. Bg3 {[%clk 0:02:52]}  Be6 {[%clk 0:02:34]} 15. Qc2 {[%clk 0:02:47]}  f5 {[%clk 0:02:32]} 16. Rab1 {[%clk 0:02:37]}  f4 {[%clk 0:02:29]} 17. exf4 {[%clk 0:02:37]}  Nxf4 {[%clk 0:02:30]} 18. Bxf4 {[%clk 0:02:27]}  Rxf4 {[%clk 0:02:31]} 19. b4 {[%clk 0:02:27]}  axb4 {[%clk 0:02:29]} 20. axb4 {[%clk 0:02:28]}  Bd4 {[%clk 0:02:29]} 21. Nb5 {[%clk 0:02:24]}  Bb6 {[%clk 0:02:25]} 22. Rbc1 {[%clk 0:02:05]}  Bf5 {[%clk 0:02:10]} 23. Bd3 {[%clk 0:01:53]}  Bxd3 {[%clk 0:01:55]} 24. Qxd3 {[%clk 0:01:53]}  Kh8 {[%clk 0:01:55]} 25. g3 {[%clk 0:01:37]}  Rf6 {[%clk 0:01:51]} 26. Kg2 {[%clk 0:01:37]}  c6 {[%clk 0:01:45]} 27. Nc3 {[%clk 0:01:34]}  Raf8 {[%clk 0:01:31]} 28. f3 {[%clk 0:01:28]}  Re6 {[%clk 0:01:27]} 29. Ne4 {[%clk 0:01:28]}  Bc7 {[%clk 0:01:25]} 30. Rce1 {[%clk 0:01:22]}  Re8 {[%clk 0:01:24]} 31. h4 {[%clk 0:01:20]}  Re5 {[%clk 0:01:23]} 32. Ng5 {[%clk 0:01:18]}  Re2+ {[%clk 0:01:09]} 33. Kh3 {[%clk 0:00:59]}  g6 {[%clk 0:01:03]} 34. Qd4+ {[%clk 0:00:47]}  Qg7 {[%clk 0:00:46]} 35. Qxg7+ {[%clk 0:00:42]}  Kxg7 {[%clk 0:00:46]} 36. Ne4 {[%clk 0:00:34]}  Rxe1 {[%clk 0:00:43]} 37. Rxe1 {[%clk 0:00:35]}  d5 {[%clk 0:00:24]} 38. cxd5 {[%clk 0:00:36]}  cxd5 {[%clk 0:00:25]} 39. Rc1 {[%clk 0:00:36]}  Bb8 {[%clk 0:00:24]} 40. Nc5 {[%clk 0:00:33]}  Bd6 {[%clk 0:00:21]} 41. Nxb7 {[%clk 0:00:30]}  Bxb4 {[%clk 0:00:21]} 42. Rc7+ {[%clk 0:00:30]}  Kg8 {[%clk 0:00:20]} 43. Rd7 {[%clk 0:00:29]}  Rb8 {[%clk 0:00:19]} 44. Nd8 {[%clk 0:00:27]}  Be1 {[%clk 0:00:16]} 45. Rxd5 {[%clk 0:00:27]}  Rb3 {[%clk 0:00:16]} 46. Ne6 {[%clk 0:00:24]}  Re3 {[%clk 0:00:14]} 47. Rd6 {[%clk 0:00:21]}  h6 {[%clk 0:00:12]} 48. Nd4 {[%clk 0:00:20]}  Kf7 {[%clk 0:00:10]} 49. Rd7+ {[%clk 0:00:19]}  Ke8 {[%clk 0:00:10]} 50. Kg2 {[%clk 0:00:19]}  Kxd7 {[%clk 0:00:08]} 0-1


[Site "https://www.chess.com"]

[Event "Titled Tuesday Blitz August 24 2021"]
[White "Yoo, Christopher Woojin"]
[Black "Grunberg, Mihai-Lucian"]
[WhiteFideId "30909694"]
[BlackFideId "1204149"]
[WhiteElo "2105"]
[BlackElo "2364"]
[Result "1-0"]
[Round "09"]
[TimeControl "180+1"]
[Date "2021.08.24"]
[WhiteClock "0:00:03"]
[BlackClock "0:00:02"]

1. e4 {[%clk 0:02:58]}  Nf6 {[%clk 0:02:58]} 2. Nc3 {[%clk 0:02:56]}  d5 {[%clk 0:02:57]} 3. exd5 {[%clk 0:02:57]}  Nxd5 {[%clk 0:02:57]} 4. Bc4 {[%clk 0:02:57]}  Nb6 {[%clk 0:02:57]} 5. Bb5+ {[%clk 0:02:57]}  Bd7 {[%clk 0:02:53]} 6. a4 {[%clk 0:02:55]}  Bxb5 {[%clk 0:02:46]} 7. axb5 {[%clk 0:02:54]}  e5 {[%clk 0:02:46]} 8. Nf3 {[%clk 0:02:54]}  Bd6 {[%clk 0:02:44]} 9. O-O {[%clk 0:02:48]}  O-O {[%clk 0:02:44]} 10. d4 {[%clk 0:02:48]}  exd4 {[%clk 0:02:42]} 11. Qxd4 {[%clk 0:02:49]}  c5 {[%clk 0:02:27]} 12. Qg4 {[%clk 0:02:43]}  Qd7 {[%clk 0:02:24]} 13. Qh5 {[%clk 0:02:42]}  Qe6 {[%clk 0:02:09]} 14. Be3 {[%clk 0:02:29]}  N8d7 {[%clk 0:02:02]} 15. Rad1 {[%clk 0:02:20]}  Be7 {[%clk 0:02:02]} 16. Ng5 {[%clk 0:01:53]}  Qg6 {[%clk 0:02:01]} 17. Qxg6 {[%clk 0:01:50]}  hxg6 {[%clk 0:02:01]} 18. Nge4 {[%clk 0:01:46]}  Rfd8 {[%clk 0:01:50]} 19. Rfe1 {[%clk 0:01:31]}  Rac8 {[%clk 0:01:41]} 20. Bf4 {[%clk 0:01:22]}  Nf6 {[%clk 0:01:31]} 21. Bd6 {[%clk 0:01:13]}  Bxd6 {[%clk 0:01:22]} 22. Nxd6 {[%clk 0:01:13]}  Rc7 {[%clk 0:01:20]} 23. Nde4 {[%clk 0:01:12]}  Rxd1 {[%clk 0:01:00]} 24. Rxd1 {[%clk 0:01:13]}  Nxe4 {[%clk 0:00:57]} 25. Nxe4 {[%clk 0:01:13]}  Kf8 {[%clk 0:00:46]} 26. h4 {[%clk 0:00:58]}  Ke7 {[%clk 0:00:46]} 27. g4 {[%clk 0:00:55]}  Nd7 {[%clk 0:00:42]} 28. Ra1 {[%clk 0:00:53]}  b6 {[%clk 0:00:41]} 29. Nc3 {[%clk 0:00:51]}  Ke6 {[%clk 0:00:25]} 30. Re1+ {[%clk 0:00:50]}  Kd6 {[%clk 0:00:25]} 31. Ne4+ {[%clk 0:00:37]}  Kd5 {[%clk 0:00:25]} 32. f3 {[%clk 0:00:37]}  Ne5 {[%clk 0:00:23]} 33. Kf2 {[%clk 0:00:37]}  Nc4 {[%clk 0:00:20]} 34. b3 {[%clk 0:00:35]}  Na3 {[%clk 0:00:17]} 35. c4+ {[%clk 0:00:34]}  Kd4 {[%clk 0:00:13]} 36. Rd1+ {[%clk 0:00:27]}  Ke5 {[%clk 0:00:12]} 37. Rd5+ {[%clk 0:00:24]}  Ke6 {[%clk 0:00:12]} 38. f4 {[%clk 0:00:23]}  Nc2 {[%clk 0:00:11]} 39. h5 {[%clk 0:00:20]}  gxh5 {[%clk 0:00:10]} 40. Re5+ {[%clk 0:00:15]}  Kd7 {[%clk 0:00:10]} 41. Rxh5 {[%clk 0:00:14]}  Nd4 {[%clk 0:00:09]} 42. b4 {[%clk 0:00:14]}  Ne6 {[%clk 0:00:07]} 43. f5 {[%clk 0:00:14]}  Nf4 {[%clk 0:00:04]} 44. Rh7 {[%clk 0:00:11]}  Nd3+ {[%clk 0:00:04]} 45. Ke3 {[%clk 0:00:11]}  Nxb4 {[%clk 0:00:04]} 46. Rxg7 {[%clk 0:00:11]}  Ke7 {[%clk 0:00:04]} 47. g5 {[%clk 0:00:10]}  Nc2+ {[%clk 0:00:03]} 48. Kd2 {[%clk 0:00:08]}  Nd4 {[%clk 0:00:04]} 49. g6 {[%clk 0:00:07]}  Kf8 {[%clk 0:00:04]} 50. f6 {[%clk 0:00:05]}  Rd7 {[%clk 0:00:03]} 51. Kc1 {[%clk 0:00:03]}  Nf5 {[%clk 0:00:03]} 52. Rh7 {[%clk 0:00:03]}  Ke8 {[%clk 0:00:02]} 53. Rh8# {[%clk 0:00:03]} 1-0


[Site "https://www.chess.com"]

[Event "Titled Tuesday Blitz August 24 2021"]
[White "Zhigalko, Sergei"]
[Black "Zubov, Alexander"]
[WhiteFideId "13502956"]
[BlackFideId "14109409"]
[WhiteElo "2662"]
[BlackElo "2740"]
[Result "1/2-1/2"]
[Round "09"]
[TimeControl "180+1"]
[Date "2021.08.24"]
[WhiteClock "0:00:05"]
[BlackClock "0:00:06"]

1. e4 {[%clk 0:03:00]}  c5 {[%clk 0:02:59]} 2. Nf3 {[%clk 0:03:01]}  d6 {[%clk 0:02:57]} 3. d4 {[%clk 0:03:00]}  cxd4 {[%clk 0:02:57]} 4. Qxd4 {[%clk 0:03:01]}  a6 {[%clk 0:02:57]} 5. Bc4 {[%clk 0:03:01]}  Nc6 {[%clk 0:02:55]} 6. Qd3 {[%clk 0:03:01]}  e6 {[%clk 0:02:53]} 7. Nc3 {[%clk 0:03:01]}  Na5 {[%clk 0:02:52]} 8. Bb3 {[%clk 0:03:01]}  Nxb3 {[%clk 0:02:50]} 9. axb3 {[%clk 0:03:02]}  Be7 {[%clk 0:02:47]} 10. Bf4 {[%clk 0:02:55]}  e5 {[%clk 0:02:45]} 11. Be3 {[%clk 0:02:54]}  Be6 {[%clk 0:02:45]} 12. O-O {[%clk 0:02:44]}  h6 {[%clk 0:02:19]} 13. Nd5 {[%clk 0:02:04]}  Bxd5 {[%clk 0:02:18]} 14. Qxd5 {[%clk 0:02:04]}  Qc7 {[%clk 0:02:19]} 15. c4 {[%clk 0:01:56]}  Nf6 {[%clk 0:02:18]} 16. Qd3 {[%clk 0:01:57]}  Qc6 {[%clk 0:02:14]} 17. Nd2 {[%clk 0:01:56]}  O-O {[%clk 0:02:14]} 18. Rfd1 {[%clk 0:01:52]}  b5 {[%clk 0:02:07]} 19. h3 {[%clk 0:01:43]}  Rfb8 {[%clk 0:01:58]} 20. Ra2 {[%clk 0:01:37]}  a5 {[%clk 0:01:48]} 21. Rda1 {[%clk 0:01:31]}  Bd8 {[%clk 0:01:48]} 22. b4 {[%clk 0:01:18]}  bxc4 {[%clk 0:01:27]} 23. Nxc4 {[%clk 0:00:49]}  Rxb4 {[%clk 0:01:04]} 24. b3 {[%clk 0:00:15]}  Qb5 {[%clk 0:00:41]} 25. Qxd6 {[%clk 0:00:10]}  Nxe4 {[%clk 0:00:39]} 26. Qxe5 {[%clk 0:00:09]}  Qxe5 {[%clk 0:00:37]} 27. Nxe5 {[%clk 0:00:10]}  Bf6 {[%clk 0:00:37]} 28. Nc6 {[%clk 0:00:06]}  Rxb3 {[%clk 0:00:19]} 29. Rxa5 {[%clk 0:00:06]}  Rf8 {[%clk 0:00:17]} 30. Rc1 {[%clk 0:00:03]}  Rc3 {[%clk 0:00:10]} 31. Rxc3 {[%clk 0:00:02]}  Bxc3 {[%clk 0:00:10]} 32. Ra7 {[%clk 0:00:02]}  Re8 {[%clk 0:00:08]} 33. Ne7+ {[%clk 0:00:03]}  Kf8 {[%clk 0:00:05]} 34. Nd5 {[%clk 0:00:03]}  Be5 {[%clk 0:00:05]} 35. g3 {[%clk 0:00:03]}  g5 {[%clk 0:00:05]} 36. Kg2 {[%clk 0:00:03]}  Bd6 {[%clk 0:00:05]} 37. Nc7 {[%clk 0:00:03]}  Bxc7 {[%clk 0:00:04]} 38. Rxc7 {[%clk 0:00:04]}  Kg7 {[%clk 0:00:04]} 39. Rc6 {[%clk 0:00:05]}  Re6 {[%clk 0:00:03]} 40. Rxe6 {[%clk 0:00:04]}  fxe6 {[%clk 0:00:04]} 41. Kf3 {[%clk 0:00:05]}  Nd6 {[%clk 0:00:04]} 42. Bd4+ {[%clk 0:00:05]}  Kg6 {[%clk 0:00:04]} 43. g4 {[%clk 0:00:05]}  Nf7 {[%clk 0:00:02]} 44. Ke4 {[%clk 0:00:04]}  h5 {[%clk 0:00:03]} 45. f3 {[%clk 0:00:04]}  hxg4 {[%clk 0:00:04]} 46. hxg4 {[%clk 0:00:04]}  Kh7 {[%clk 0:00:04]} 47. Bc3 {[%clk 0:00:03]}  Kg6 {[%clk 0:00:05]} 48. Bd4 {[%clk 0:00:04]}  Kh7 {[%clk 0:00:05]} 49. Bc3 {[%clk 0:00:04]}  Kg6 {[%clk 0:00:06]} 50. Bd4 {[%clk 0:00:05]} 1/2-1/2


[Site "https://www.chess.com"]

[Event "Titled Tuesday Blitz August 24 2021"]
[White "Aghasiyev, Kamal"]
[Black "Wilson, Elvin"]
[WhiteFideId "13402854"]
[BlackFideId "2014874"]
[WhiteElo "2210"]
[BlackElo "2331"]
[Result "1-0"]
[Round "10"]
[TimeControl "180+1"]
[Date "2021.08.24"]
[WhiteClock "0:02:09"]
[BlackClock "0:02:15"]

1. d4 {[%clk 0:03:00]}  Nf6 {[%clk 0:02:51]} 2. c4 {[%clk 0:03:00]}  e6 {[%clk 0:02:52]} 3. Nf3 {[%clk 0:02:59]}  d5 {[%clk 0:02:50]} 4. Nc3 {[%clk 0:02:58]}  Bb4 {[%clk 0:02:50]} 5. Bg5 {[%clk 0:02:49]}  h6 {[%clk 0:02:49]} 6. Bxf6 {[%clk 0:02:45]}  Qxf6 {[%clk 0:02:48]} 7. e3 {[%clk 0:02:44]}  O-O {[%clk 0:02:43]} 8. Rc1 {[%clk 0:02:39]}  dxc4 {[%clk 0:02:38]} 9. Bxc4 {[%clk 0:02:38]}  c5 {[%clk 0:02:39]} 10. O-O {[%clk 0:02:34]}  cxd4 {[%clk 0:02:39]} 11. Nxd4 {[%clk 0:02:33]}  Rd8 {[%clk 0:02:33]} 12. Qb3 {[%clk 0:02:19]}  Bf8 {[%clk 0:02:24]} 13. Rfd1 {[%clk 0:02:12]}  Bd7 {[%clk 0:02:15]} 14. Qxb7 {[%clk 0:02:09]} 1-0


[Site "https://www.chess.com"]

[Event "Titled Tuesday Blitz August 24 2021"]
[White "Aldokhin, Ivan"]
[Black "Adury, Anant"]
[WhiteFideId "24115720"]
[BlackFideId "30964687"]
[WhiteElo "2306"]
[BlackElo "2406"]
[Result "1-0"]
[Round "10"]
[TimeControl "180+1"]
[Date "2021.08.24"]
[WhiteClock "0:01:06"]
[BlackClock "0:01:14"]

1. e4 {[%clk 0:02:52]}  c5 {[%clk 0:02:46]} 2. Nf3 {[%clk 0:02:52]}  g6 {[%clk 0:02:47]} 3. d4 {[%clk 0:02:53]}  cxd4 {[%clk 0:02:47]} 4. Nxd4 {[%clk 0:02:54]}  Nc6 {[%clk 0:02:48]} 5. Nc3 {[%clk 0:02:55]}  Bg7 {[%clk 0:02:47]} 6. Be3 {[%clk 0:02:55]}  Nf6 {[%clk 0:02:47]} 7. Bc4 {[%clk 0:02:56]}  O-O {[%clk 0:02:46]} 8. Bb3 {[%clk 0:02:56]}  d6 {[%clk 0:02:47]} 9. h3 {[%clk 0:02:56]}  Na5 {[%clk 0:02:46]} 10. O-O {[%clk 0:02:56]}  b6 {[%clk 0:02:39]} 11. Qd3 {[%clk 0:02:45]}  Bb7 {[%clk 0:02:37]} 12. Nd5 {[%clk 0:02:44]}  Nxb3 {[%clk 0:02:28]} 13. Nxf6+ {[%clk 0:02:41]}  Bxf6 {[%clk 0:02:28]} 14. axb3 {[%clk 0:02:41]}  Bg7 {[%clk 0:02:28]} 15. c4 {[%clk 0:02:37]}  a6 {[%clk 0:02:24]} 16. f3 {[%clk 0:02:34]}  Qc7 {[%clk 0:02:23]} 17. Qd2 {[%clk 0:02:24]}  Rfc8 {[%clk 0:02:23]} 18. Ne2 {[%clk 0:02:17]}  b5 {[%clk 0:02:21]} 19. Rac1 {[%clk 0:02:11]}  bxc4 {[%clk 0:02:17]} 20. bxc4 {[%clk 0:02:10]}  a5 {[%clk 0:02:16]} 21. c5 {[%clk 0:01:52]}  Ba6 {[%clk 0:02:16]} 22. c6 {[%clk 0:01:45]}  Rab8 {[%clk 0:02:00]} 23. Rc2 {[%clk 0:01:45]}  Rb3 {[%clk 0:01:51]} 24. Rfc1 {[%clk 0:01:37]}  Rcb8 {[%clk 0:01:50]} 25. Nd4 {[%clk 0:01:30]}  Bxd4 {[%clk 0:01:46]} 26. Bxd4 {[%clk 0:01:25]}  f6 {[%clk 0:01:44]} 27. Bc3 {[%clk 0:01:12]}  Qxc6 {[%clk 0:01:22]} 28. Bxf6 {[%clk 0:01:12]}  Qb6+ {[%clk 0:01:18]} 29. Bd4 {[%clk 0:01:12]}  Qb5 {[%clk 0:01:16]} 30. Qh6 {[%clk 0:01:07]}  e5 {[%clk 0:01:14]} 31. Rc7 {[%clk 0:01:06]} 1-0


[Site "https://www.chess.com"]

[Event "Titled Tuesday Blitz August 24 2021"]
[White "Avramidou, Anastasia"]
[Black "Zanette, Edgard Vinicius"]
[WhiteFideId "4239873"]
[BlackFideId "2109263"]
[WhiteElo "2183"]
[BlackElo "2202"]
[Result "1-0"]
[Round "10"]
[TimeControl "180+1"]
[Date "2021.08.24"]
[WhiteClock "0:00:48"]
[BlackClock "0:00:12"]

1. c4 {[%clk 0:02:33]}  c6 {[%clk 0:02:59]} 2. Nc3 {[%clk 0:02:33]}  d5 {[%clk 0:02:59]} 3. cxd5 {[%clk 0:02:34]}  cxd5 {[%clk 0:02:59]} 4. d4 {[%clk 0:02:34]}  Nf6 {[%clk 0:03:00]} 5. Bf4 {[%clk 0:02:35]}  a6 {[%clk 0:02:57]} 6. e3 {[%clk 0:02:35]}  Nc6 {[%clk 0:02:57]} 7. Bd3 {[%clk 0:02:34]}  e6 {[%clk 0:02:53]} 8. Nf3 {[%clk 0:02:33]}  Bd6 {[%clk 0:02:54]} 9. Bg5 {[%clk 0:02:34]}  h6 {[%clk 0:02:53]} 10. Bh4 {[%clk 0:02:33]}  O-O {[%clk 0:02:53]} 11. O-O {[%clk 0:02:34]}  b5 {[%clk 0:02:52]} 12. Rc1 {[%clk 0:02:34]}  Bb7 {[%clk 0:02:52]} 13. Qe2 {[%clk 0:02:34]}  Be7 {[%clk 0:02:43]} 14. h3 {[%clk 0:02:32]}  Rc8 {[%clk 0:02:42]} 15. a4 {[%clk 0:02:28]}  b4 {[%clk 0:02:31]} 16. Nb1 {[%clk 0:02:18]}  Qb6 {[%clk 0:02:20]} 17. Nbd2 {[%clk 0:02:13]}  b3 {[%clk 0:02:00]} 18. Rc3 {[%clk 0:02:07]}  Na5 {[%clk 0:01:59]} 19. Rfc1 {[%clk 0:02:05]}  Rxc3 {[%clk 0:01:58]} 20. Rxc3 {[%clk 0:02:06]}  Bb4 {[%clk 0:01:58]} 21. Rc1 {[%clk 0:02:02]}  Ne4 {[%clk 0:01:58]} 22. Bxe4 {[%clk 0:01:56]}  dxe4 {[%clk 0:01:57]} 23. Ne5 {[%clk 0:01:56]}  Rc8 {[%clk 0:01:28]} 24. Rxc8+ {[%clk 0:01:55]}  Bxc8 {[%clk 0:01:28]} 25. Nxe4 {[%clk 0:01:52]}  Bb7 {[%clk 0:01:19]} 26. Nd2 {[%clk 0:01:39]}  f6 {[%clk 0:01:09]} 27. Nec4 {[%clk 0:01:25]}  Qc6 {[%clk 0:01:02]} 28. f3 {[%clk 0:01:24]}  Qxa4 {[%clk 0:00:56]} 29. Nxa5 {[%clk 0:01:23]}  Qxa5 {[%clk 0:00:55]} 30. Nxb3 {[%clk 0:01:18]}  Qa2 {[%clk 0:00:51]} 31. Nc5 {[%clk 0:01:17]}  Bxc5 {[%clk 0:00:29]} 32. dxc5 {[%clk 0:01:17]}  Qd5 {[%clk 0:00:30]} 33. Qc2 {[%clk 0:01:11]}  g5 {[%clk 0:00:22]} 34. Bf2 {[%clk 0:01:11]}  Kg7 {[%clk 0:00:22]} 35. e4 {[%clk 0:01:11]}  Qc6 {[%clk 0:00:20]} 36. Qc3 {[%clk 0:01:09]}  Kf7 {[%clk 0:00:19]} 37. b4 {[%clk 0:01:09]}  e5 {[%clk 0:00:18]} 38. Qd2 {[%clk 0:01:02]}  Bc8 {[%clk 0:00:17]} 39. Qd8 {[%clk 0:00:58]}  Qd7 {[%clk 0:00:16]} 40. Qh8 {[%clk 0:00:49]}  Kg6 {[%clk 0:00:12]} 41. Qg8+ {[%clk 0:00:48]} 1-0


[Site "https://www.chess.com"]

[Event "Titled Tuesday Blitz August 24 2021"]
[White "Bai, Adelard"]
[Black "Girinath, P.D.S."]
[WhiteFideId "16301188"]
[BlackFideId "5000572"]
[WhiteElo "2120"]
[BlackElo "2333"]
[Result "1-0"]
[Round "10"]
[TimeControl "180+1"]
[Date "2021.08.24"]
[WhiteClock "0:00:13"]
[BlackClock "0:00:05"]

1. d4 {[%clk 0:02:59]}  e6 {[%clk 0:02:59]} 2. Nf3 {[%clk 0:02:56]}  f5 {[%clk 0:02:59]} 3. g3 {[%clk 0:02:53]}  Nf6 {[%clk 0:02:59]} 4. Bg2 {[%clk 0:02:54]}  Be7 {[%clk 0:02:59]} 5. O-O {[%clk 0:02:54]}  O-O {[%clk 0:03:00]} 6. b3 {[%clk 0:02:53]}  a5 {[%clk 0:02:56]} 7. a3 {[%clk 0:02:51]}  d6 {[%clk 0:02:55]} 8. Bb2 {[%clk 0:02:50]}  Qe8 {[%clk 0:02:55]} 9. Nbd2 {[%clk 0:02:44]}  Ne4 {[%clk 0:02:42]} 10. Nxe4 {[%clk 0:02:33]}  fxe4 {[%clk 0:02:43]} 11. Nd2 {[%clk 0:02:34]}  d5 {[%clk 0:02:41]} 12. f3 {[%clk 0:02:35]}  e3 {[%clk 0:02:08]} 13. Nb1 {[%clk 0:02:35]}  c5 {[%clk 0:02:07]} 14. f4 {[%clk 0:02:20]}  Nc6 {[%clk 0:02:04]} 15. dxc5 {[%clk 0:02:07]}  Bxc5 {[%clk 0:02:02]} 16. Nc3 {[%clk 0:02:07]}  Ne7 {[%clk 0:01:51]} 17. Na4 {[%clk 0:01:58]}  Ba7 {[%clk 0:01:49]} 18. Bd4 {[%clk 0:01:58]}  Bxd4 {[%clk 0:01:46]} 19. Qxd4 {[%clk 0:01:59]}  Nf5 {[%clk 0:01:46]} 20. Qe5 {[%clk 0:01:54]}  h5 {[%clk 0:01:28]} 21. c4 {[%clk 0:01:47]}  dxc4 {[%clk 0:01:29]} 22. Nb6 {[%clk 0:01:40]}  Ra6 {[%clk 0:01:24]} 23. Nxc4 {[%clk 0:01:41]}  h4 {[%clk 0:01:05]} 24. g4 {[%clk 0:01:37]}  h3 {[%clk 0:00:57]} 25. Bxh3 {[%clk 0:01:29]}  Qg6 {[%clk 0:00:56]} 26. Rad1 {[%clk 0:01:11]}  a4 {[%clk 0:00:48]} 27. b4 {[%clk 0:01:09]}  Rc6 {[%clk 0:00:46]} 28. Nxe3 {[%clk 0:01:01]}  Nxe3 {[%clk 0:00:46]} 29. Qxe3 {[%clk 0:01:00]}  e5 {[%clk 0:00:47]} 30. fxe5 {[%clk 0:00:52]}  Bxg4 {[%clk 0:00:45]} 31. Rxf8+ {[%clk 0:00:51]}  Kxf8 {[%clk 0:00:45]} 32. Qf4+ {[%clk 0:00:51]}  Rf6 {[%clk 0:00:37]} 33. Rd8+ {[%clk 0:00:48]}  Kf7 {[%clk 0:00:33]} 34. exf6 {[%clk 0:00:26]}  Bxh3+ {[%clk 0:00:28]} 35. Kf2 {[%clk 0:00:22]}  Qg2+ {[%clk 0:00:20]} 36. Ke1 {[%clk 0:00:19]}  gxf6 {[%clk 0:00:14]} 37. Qc7+ {[%clk 0:00:18]}  Ke6 {[%clk 0:00:12]} 38. Re8+ {[%clk 0:00:13]}  Kf5 {[%clk 0:00:11]} 39. Qh7+ {[%clk 0:00:13]}  Kf4 {[%clk 0:00:08]} 40. e3+ {[%clk 0:00:12]}  Kg4 {[%clk 0:00:02]} 41. Rg8+ {[%clk 0:00:12]}  Kf3 {[%clk 0:00:03]} 42. Rxg2 {[%clk 0:00:11]}  Bxg2 {[%clk 0:00:04]} 43. Qxb7+ {[%clk 0:00:11]}  Kxe3 {[%clk 0:00:03]} 44. Qxg2 {[%clk 0:00:11]}  f5 {[%clk 0:00:04]} 45. Qe2+ {[%clk 0:00:11]}  Kd4 {[%clk 0:00:03]} 46. h4 {[%clk 0:00:12]}  f4 {[%clk 0:00:04]} 47. h5 {[%clk 0:00:13]}  f3 {[%clk 0:00:05]} 48. Qxf3 {[%clk 0:00:13]}  Kc4 {[%clk 0:00:05]} 49. Qe3 {[%clk 0:00:13]} 1-0


[Site "https://www.chess.com"]

[Event "Titled Tuesday Blitz August 24 2021"]
[White "Dang, Hoang Son"]
[Black "Tologon tegin, Semetei"]
[WhiteFideId "12402435"]
[BlackFideId "13800574"]
[WhiteElo "2248"]
[BlackElo "2224"]
[Result "1-0"]
[Round "10"]
[TimeControl "180+1"]
[Date "2021.08.24"]
[WhiteClock "0:02:46"]
[BlackClock "0:01:55"]

1. d4 {[%clk 0:03:00]}  Nf6 {[%clk 0:02:59]} 2. c4 {[%clk 0:03:01]}  g6 {[%clk 0:02:59]} 3. Nf3 {[%clk 0:03:02]}  d5 {[%clk 0:02:59]} 4. Nc3 {[%clk 0:03:03]}  Bg7 {[%clk 0:02:59]} 5. cxd5 {[%clk 0:03:03]}  Nxd5 {[%clk 0:02:59]} 6. e4 {[%clk 0:03:04]}  Nxc3 {[%clk 0:02:59]} 7. bxc3 {[%clk 0:03:05]}  c5 {[%clk 0:02:59]} 8. Be3 {[%clk 0:03:04]}  Nc6 {[%clk 0:02:57]} 9. Be2 {[%clk 0:03:03]}  cxd4 {[%clk 0:02:56]} 10. cxd4 {[%clk 0:03:03]}  Qa5+ {[%clk 0:02:56]} 11. Bd2 {[%clk 0:02:59]}  Qa3 {[%clk 0:02:44]} 12. d5 {[%clk 0:02:56]}  Nd4 {[%clk 0:02:39]} 13. Nxd4 {[%clk 0:02:54]}  Bxd4 {[%clk 0:02:38]} 14. Bb5+ {[%clk 0:02:55]}  Bd7 {[%clk 0:02:38]} 15. Bxd7+ {[%clk 0:02:55]}  Kxd7 {[%clk 0:02:39]} 16. Rb1 {[%clk 0:02:55]}  b6 {[%clk 0:02:34]} 17. O-O {[%clk 0:02:54]}  Rhc8 {[%clk 0:02:29]} 18. Bb4 {[%clk 0:02:48]}  Qxa2 {[%clk 0:01:58]} 19. Qxd4 {[%clk 0:02:47]}  Rc4 {[%clk 0:01:59]} 20. Qe5 {[%clk 0:02:46]}  Re8 {[%clk 0:01:55]} 21. Ra1 {[%clk 0:02:46]} 1-0


[Site "https://www.chess.com"]

[Event "Titled Tuesday Blitz August 24 2021"]
[White "FGHSMN"]
[Black "Kovalchuk94"]
[WhiteElo "2707"]
[BlackElo "2613"]
[Result "1-0"]
[Round "10"]
[TimeControl "180+1"]
[Date "2021.08.24"]
[WhiteClock "0:01:21"]
[BlackClock "0:00:05"]

1. e4 {[%clk 0:03:00]}  e5 {[%clk 0:02:57]} 2. f4 {[%clk 0:03:00]}  exf4 {[%clk 0:02:57]} 3. Nf3 {[%clk 0:02:59]}  Nf6 {[%clk 0:02:56]} 4. e5 {[%clk 0:02:59]}  Nh5 {[%clk 0:02:56]} 5. Qe2 {[%clk 0:02:59]}  Be7 {[%clk 0:02:52]} 6. d4 {[%clk 0:02:58]}  g6 {[%clk 0:02:43]} 7. g4 {[%clk 0:02:52]}  fxg3 {[%clk 0:02:43]} 8. Bh6 {[%clk 0:02:46]}  gxh2 {[%clk 0:02:41]} 9. Qxh2 {[%clk 0:02:35]}  d6 {[%clk 0:02:37]} 10. Nbd2 {[%clk 0:02:34]}  Nc6 {[%clk 0:02:33]} 11. O-O-O {[%clk 0:02:34]}  Bf5 {[%clk 0:02:11]} 12. d5 {[%clk 0:02:29]}  Nb4 {[%clk 0:01:53]} 13. Nd4 {[%clk 0:02:27]}  Bg4 {[%clk 0:00:52]} 14. Re1 {[%clk 0:02:20]}  Qd7 {[%clk 0:00:21]} 15. Bb5 {[%clk 0:02:05]}  c6 {[%clk 0:00:21]} 16. exd6 {[%clk 0:02:05]}  O-O-O {[%clk 0:00:14]} 17. dxe7 {[%clk 0:02:02]}  cxb5 {[%clk 0:00:07]} 18. exd8=R+ {[%clk 0:01:56]}  Rxd8 {[%clk 0:00:08]} 19. d6 {[%clk 0:01:47]}  Qxd6 {[%clk 0:00:04]} 20. Qxd6 {[%clk 0:01:42]}  Rxd6 {[%clk 0:00:04]} 21. Nxb5 {[%clk 0:01:43]}  Nxa2+ {[%clk 0:00:03]} 22. Kb1 {[%clk 0:01:43]}  Ra6 {[%clk 0:00:04]} 23. Re8+ {[%clk 0:01:39]}  Kd7 {[%clk 0:00:04]} 24. Rhe1 {[%clk 0:01:39]}  Be6 {[%clk 0:00:04]} 25. Rb8 {[%clk 0:01:37]}  Nb4 {[%clk 0:00:05]} 26. Rxb7+ {[%clk 0:01:34]}  Kc6 {[%clk 0:00:05]} 27. Nd6 {[%clk 0:01:28]}  Ba2+ {[%clk 0:00:04]} 28. Kc1 {[%clk 0:01:28]}  Bd5 {[%clk 0:00:01]} 29. Rxb4 {[%clk 0:01:28]}  Kxd6 {[%clk 0:00:02]} 30. c4 {[%clk 0:01:25]}  Ra1+ {[%clk 0:00:01]} 31. Nb1 {[%clk 0:01:25]}  Be6 {[%clk 0:00:02]} 32. Bf8+ {[%clk 0:01:25]}  Kc6 {[%clk 0:00:02]} 33. b3 {[%clk 0:01:24]}  Bf5 {[%clk 0:00:03]} 34. Kb2 {[%clk 0:01:25]}  Ra5 {[%clk 0:00:03]} 35. Nc3 {[%clk 0:01:24]}  Nf6 {[%clk 0:00:04]} 36. Bg7 {[%clk 0:01:23]}  Ng4 {[%clk 0:00:04]} 37. Nd5 {[%clk 0:01:23]}  h5 {[%clk 0:00:04]} 38. Ne7+ {[%clk 0:01:22]}  Kc5 {[%clk 0:00:05]} 39. Bc3 {[%clk 0:01:20]}  Ra6 {[%clk 0:00:05]} 40. Rb5+ {[%clk 0:01:20]}  Kd6 {[%clk 0:00:05]} 41. Nxf5+ {[%clk 0:01:20]}  gxf5 {[%clk 0:00:05]} 42. Rxf5 {[%clk 0:01:21]} 1-0


[Site "https://www.chess.com"]